bitfinex-derivatives/quotes_ETHF0:USTF0_20251126
["timestamp","ask_amount","ask_price","bid_price","bid_amount"]
[1764182860657,0.16548,3022.2,3022.1,0.4646]
[1764182861256,0.16545,3022.8,3022.1,0.4646]
[1764182861548,0.75363722,3022.7,3022.1,0.4646]
[1764182861749,0.477,3022.6,3022.0,0.291]
[1764182861948,0.16546,3022.7,3022.0,0.291]
[1764182861949,0.16546,3022.7,3022.6,0.4646]
[1764182862260,0.9193437,3022.7,3022.6,0.4646]
[1764182862756,0.477,3022.6,3022.5,0.291]
[1764182863054,0.477,3022.6,3022.0,0.291]
[1764182863250,0.16546,3022.6,3022.5,0.7556]
[1764182864862,1.34687948,3023.2,3022.5,0.7556]
[1764182865060,0.75414558,3023.1,3023.0,0.7556]
[1764182865949,0.477,3022.6,3022.0,0.291]
[1764182866149,0.16546,3022.7,3022.6,0.4646]
[1764182867852,0.16549,3022.1,3021.5,0.28151426]
[1764182868455,0.42599,3022.0,3021.5,0.28151426]
[1764182868657,0.477,3021.6,3021.5,0.00261426]
[1764182869260,0.477,3021.6,3021.5,0.46721426]
[1764182869955,0.1655,3021.8,3021.5,0.46721426]
[1764182871458,0.1655,3021.8,3021.7,0.4646]
[1764182874274,1.47324948,3022.5,3021.7,0.4646]
[1764182874573,0.91826064,3022.4,3021.7,0.4646]
[1764182874875,0.75279064,3022.3,3022.0,0.291]
[1764182876871,0.477,3022.1,3022.0,0.291]
[1764182877071,0.477,3022.1,3022.0,0.4646]
[1764182877475,0.16547,3022.4,3022.0,0.7556]
[1764182877675,0.75292231,3022.3,3022.0,0.7556]
[1764182877880,0.16547,3022.4,3022.0,0.7556]
[1764182878072,1.22996093,3022.3,3022.2,0.4646]
[1764182878275,1.22996093,3022.3,3022.0,0.291]
[1764182878476,0.477,3022.1,3022.0,0.7556]
[1764182879179,1.18144948,3022.9,3022.0,0.7556]
[1764182879379,0.75332904,3022.8,3022.0,0.7556]
[1764182879571,0.75332904,3022.7,3022.0,0.7556]
[1764182879873,0.75332904,3022.6,3022.0,0.7556]
[1764182880069,0.95132904,3022.5,3022.0,0.7556]
[1764182880279,0.198,3022.5,3022.0,0.7556]
[1764182880674,0.477,3022.1,3022.0,0.7556]
[1764182881178,0.16545,3022.8,3022.0,0.7556]
[1764182881383,0.7533815,3022.7,3022.0,0.7556]
[1764182881575,1.18144948,3023.2,3022.9,0.4646]
[1764182881769,0.00414262,3023.3,3023.2,0.4646]
[1764182882571,0.48114262,3023.3,3022.5,2.05875372]
[1764182882767,0.48114262,3023.3,3023.2,0.4646]
[1764182882973,1.23361726,3023.3,3023.2,0.4646]
[1764182883368,1.23361726,3023.3,3022.8,0.00496639]
[1764182883569,0.48114262,3023.3,3022.8,0.00496639]
[1764182883974,0.00414262,3023.3,3023.2,0.4646]
[1764182884184,0.48114262,3023.3,3023.2,0.4646]
[1764182884480,0.48114262,3023.3,3023.0,0.291]
[1764182884481,0.477,3023.1,3023.0,0.7556]
[1764182885275,0.477,3023.1,3023.0,0.4646]
[1764182885584,0.4475,3022.9,3022.8,0.00496639]
[1764182886184,0.4475,3022.9,3022.8,0.45746639]
[1764182887380,0.4475,3022.9,3022.8,0.00496639]
[1764182888383,0.4475,3022.9,3022.8,0.47506639]
[1764182889380,0.00414262,3023.3,3023.2,0.4701]
[1764182894181,0.45404262,3023.3,3023.2,0.4701]
[1764182896597,0.00414262,3023.3,3023.2,0.4701]
[1764182900993,0.45404262,3023.3,3023.2,0.4701]
[1764182901390,0.00414262,3023.3,3023.2,0.4701]
[1764182901597,0.00496639,3023.5,3023.4,0.4701]
[1764182902496,0.45716,3024.5,3023.5,0.2967]
[1764182902708,0.74926918,3024.4,3023.5,0.2967]
[1764182902998,0.74926918,3024.3,3023.5,0.2967]
[1764182903188,1.19916918,3024.2,3024.1,0.4701]
[1764182903500,1.19916918,3024.2,3024.1,0.47432595]
[1764182903800,1.19916918,3024.2,3024.1,0.00422595]
[1764182904001,0.4499,3024.2,3024.1,0.00422595]
[1764182905192,3.83056519,3024.2,3024.1,0.00422595]
[1764182905600,1.3651035,3024.2,3024.1,0.00422595]
[1764182906601,1.36506625,3024.2,3024.1,0.47432595]
[1764182908102,0.75027043,3024.2,3024.1,0.47432595]
[1764182909700,0.00392941,3024.5,3024.4,0.4701]
[1764182910102,0.7543575,3024.5,3024.4,0.4701]
[1764182910303,0.00392941,3024.5,3024.4,0.4701]
[1764182911194,1.34675948,3025.3,3024.5,0.2967]
[1764182911396,0.75018794,3025.2,3024.6,0.00496639]
[1764182911592,4.84055932,3025.8,3025.6,0.4701]
[1764182911593,0.4499,3025.7,3025.6,0.4701]
[1764182911802,0.4499,3025.7,3024.6,0.00496639]
[1764182911803,1.20022857,3025.7,3024.6,0.00496639]
[1764182912004,0.2613,3025.5,3024.6,0.00496639]
[1764182912202,0.00279122,3025.7,3024.6,0.00496639]
[1764182912702,0.16808122,3025.7,3024.6,0.00496639]
[1764182912909,0.00279122,3025.7,3024.6,0.00496639]
[1764182913313,0.4499,3024.7,3024.6,0.00496639]
[1764182913794,0.4499,3024.2,3023.3,1.76775372]
[1764182914306,1.18144948,3024.8,3023.0,4.69534541]
[1764182914508,0.4499,3024.2,3023.0,4.69534541]
[1764182914694,0.00493683,3024.5,3024.1,0.47432595]
[1764182915100,0.4499,3024.2,3024.1,0.00422595]
[1764182915501,0.16536,3024.4,3024.3,0.4664]
[1764182915901,0.00493683,3024.5,3024.3,0.4664]
[1764182916101,0.00493683,3024.5,3024.4,0.4664]
[1764182918194,1.34674948,3025.6,3024.5,0.2893]
[1764182918398,0.1653,3025.6,3024.5,0.2893]
[1764182918901,0.00279122,3025.7,3024.5,0.2893]
[1764182920504,0.16808122,3025.7,3024.5,0.2893]
[1764182920705,0.1653,3025.6,3024.5,0.2893]
[1764182920902,0.4346,3025.5,3024.5,0.2893]
[1764182921610,0.16531,3025.4,3024.5,0.2893]
[1764182922809,0.16531,3025.4,3025.3,0.4664]
[1764182923013,0.64661,3025.4,3025.0,0.2893]
[1764182923813,0.16531,3025.4,3025.3,0.4664]
[1764182924305,0.16531,3025.4,3025.0,0.2893]
[1764182924306,0.48409122,3025.7,3025.5,0.2893]
[1764182924514,0.4813,3025.6,3025.0,0.2893]
[1764182924809,1.76554297,3026.3,3025.0,0.2893]
[1764182924810,1.45074948,3026.5,3025.6,0.4664]
[1764182925010,0.73714042,3026.4,3025.7,0.00495753]
[1764182925201,0.73714042,3026.3,3025.7,0.00495753]
[1764182925911,0.73881342,3026.3,3025.7,0.00495753]
[1764182926117,0.001673,3026.3,3026.1,0.4664]
[1764182926409,0.4813,3026.2,3026.1,0.4664]
[1764182926802,0.4813,3026.2,3025.7,0.00495753]
[1764182927306,0.001673,3026.3,3026.2,0.4664]
[1764182927499,0.482973,3026.3,3026.2,0.4664]
[1764182928011,0.001673,3026.3,3026.2,0.4664]
[1764182928200,0.001673,3026.3,3026.0,0.2893]
[1764182928611,0.001673,3026.3,3026.2,0.4664]
[1764182932013,0.16523,3026.9,3026.2,0.4664]
[1764182932202,0.73680929,3026.8,3026.2,0.4664]
[1764182932405,0.16523,3026.9,3026.2,0.4664]
[1764182932406,0.73680929,3026.7,3026.2,0.4664]
[1764182932608,0.16523,3026.9,3026.2,0.4664]
[1764182932807,0.73676386,3026.8,3026.2,0.4664]
[1764182933008,0.73676386,3026.7,3026.6,0.4664]
[1764182933316,1.21806386,3026.7,3026.6,0.46882861]
[1764182933713,0.4813,3026.7,3026.6,0.46882861]
[1764182934310,0.64654,3026.7,3026.6,0.00242861]
[1764182935110,2.78568239,3027.4,3026.6,0.00242861]
[1764182935308,0.73627372,3027.3,3026.6,0.00242861]
[1764182935514,0.16524,3026.7,3026.6,0.00242861]
[1764182937009,0.16524,3026.7,3026.6,0.46882861]
[1764182939010,21.8,3027.9,3026.6,0.46882861]
[1764182939211,1.081,3028.0,3027.0,0.7557]
[1764182939407,0.16519,3027.5,3027.4,0.4664]
[1764182940520,0.16516,3028.1,3028.0,0.7557]
[1764182940914,21.8,3029.4,3028.0,0.7557]
[1764182941116,0.16513,3028.6,3028.5,0.2893]
[1764182941318,0.16511,3029.1,3029.0,0.2893]
[1764182941514,0.16511,3029.1,3029.0,0.0031822]
[1764182941821,0.16513,3028.6,3028.5,0.2893]
[1764182942117,2.78568239,3029.1,3028.2,0.00495753]
[1764182942319,0.16517,3027.9,3027.0,0.2893]
[1764182942525,0.16517,3027.9,3027.8,0.4664]
[1764182942717,0.1683522,3027.9,3027.8,0.47001278]
[1764182943126,0.1683522,3027.9,3027.8,0.00361278]
[1764182947023,0.1683522,3027.9,3027.8,0.47001278]
[1764182948725,0.16513,3028.6,3028.5,0.2945]
[1764182949813,0.16513,3028.6,3028.0,0.2945]
[1764182950020,0.16515,3028.3,3028.0,0.2945]
[1764182950327,0.16515,3028.3,3028.2,0.4517]
[1764182950624,0.16515,3028.3,3028.0,0.2945]
[1764182950822,0.16516,3028.2,3028.0,0.2945]
[1764182951414,0.16516,3028.1,3028.0,0.2945]
[1764182951718,0.16517,3027.9,3027.8,0.00361278]
[1764182952025,0.16517,3027.9,3027.8,0.45531278]
[1764182953725,0.16517,3027.9,3027.8,0.00361278]
[1764182955122,4.54736236,3028.8,3027.0,0.2893]
[1764182955329,0.16518,3027.7,3027.6,0.4517]
[1764182956232,0.16751009,3027.7,3027.6,0.45412849]
[1764182959623,0.00495753,3028.0,3027.9,0.4517]
[1764182959823,0.16518,3027.9,3027.6,0.00242849]
[1764182960028,0.16518,3027.9,3027.8,0.4517]
[1764182960738,0.16646269,3027.9,3027.8,0.4517]
[1764182963135,0.00128269,3027.9,3027.6,0.00242849]
[1764182964442,0.16518,3027.7,3027.6,0.45412849]
[1764182970239,0.00128269,3027.9,3027.8,0.4517]
[1764182973237,1.18072786,3028.4,3028.3,0.4517]
[1764182973438,1.18072786,3028.5,3028.4,0.4517]
[1764182973844,1.76167997,3028.7,3028.5,0.2945]
[1764182974038,1.76167997,3028.7,3028.6,0.4517]
[1764182975735,1.76167997,3029.0,3028.9,0.472]
[1764182976642,1.76167997,3029.0,3028.6,0.00495753]
[1764182976844,1.18490847,3028.9,3028.8,0.472]
[1764182977044,1.92678997,3029.0,3028.6,0.00495753]
[1764182977243,1.18454656,3028.9,3028.6,0.00495753]
[1764182977848,1.18454656,3028.9,3028.8,0.472]
[1764182979253,1.34966656,3028.9,3028.8,0.472]
[1764182979449,0.16513,3028.7,3028.6,0.00495753]
[1764182980142,0.16513,3028.7,3028.6,0.47695753]
[1764182981353,0.16513,3028.7,3028.6,0.00495753]
[1764182981544,0.16513,3028.7,3028.6,0.47695753]
[1764182981744,0.16513,3028.7,3028.6,0.00495753]
[1764182982047,0.16513,3028.7,3028.6,0.47695753]
[1764182983549,0.08003987,3028.7,3028.6,0.47695753]
[1764182990555,1.18454656,3029.4,3029.3,0.472]
[1764182990750,1.18454656,3029.7,3029.6,0.472]
[1764182991154,1.34961656,3029.7,3029.6,0.472]
[1764182991354,0.16508,3029.6,3029.5,0.2727]
[1764182991850,0.16508,3029.6,3029.5,0.7447]
[1764182992654,1.18454656,3029.9,3029.7,0.472]
[1764182992853,0.16507,3029.9,3029.7,0.472]
[1764182993058,0.16507,3029.7,3029.6,0.472]
[1764182994459,0.16507,3029.7,3029.5,0.2727]
[1764182994761,0.16507,3029.7,3029.6,0.472]
[1764182995166,0.1651,3029.3,3029.0,0.2727]
[1764182995365,0.1651,3029.3,3029.2,0.472]
[1764182998967,1.18454656,3029.8,3029.5,0.2727]
[1764182999167,1.34961656,3029.8,3029.5,0.2727]
[1764183000664,0.16507,3029.7,3029.5,0.2727]
[1764183000968,1.18454656,3029.8,3029.5,0.2727]
[1764183001169,1.76167997,3029.9,3029.5,0.2727]
[1764183001170,1.18454656,3029.7,3029.5,0.2727]
[1764183001365,1.18454656,3029.7,3029.0,0.2727]
[1764183001571,1.18454656,3029.5,3029.0,0.2727]
[1764183002073,0.1651,3029.1,3029.0,0.2727]
[1764183002267,1.18454656,3029.2,3028.6,0.00495753]
[1764183002668,0.16512,3028.8,3028.6,0.00495753]
[1764183003363,0.16513,3028.7,3028.6,0.00495753]
[1764183004061,0.16513,3028.7,3028.6,0.47695753]
[1764183004262,0.16513,3028.7,3028.6,0.00495753]
[1764183004480,0.16517,3027.9,3027.6,0.00242849]
[1764183004669,0.16518,3027.8,3027.6,0.00242849]
[1764183005070,0.16518,3027.8,3027.7,0.472]
[1764183005464,1.18184127,3028.4,3028.2,0.4932]
[1764183005670,0.16514,3028.5,3028.4,0.4932]
[1764183005973,0.16514,3028.5,3028.0,0.2784]
[1764183006474,0.16514,3028.5,3028.4,0.4932]
[1764183006675,1.18184127,3029.1,3029.0,0.2705]
[1764183006969,1.34695127,3029.1,3029.0,0.7335]
[1764183007174,0.16511,3029.1,3029.0,0.7335]
[1764183007368,4.30213542,3029.8,3029.0,0.7335]
[1764183007369,1.18184127,3029.5,3029.0,0.7335]
[1764183007673,1.18184127,3029.6,3029.0,0.7335]
[1764183008069,1.77276191,3029.8,3029.7,0.463]
[1764183008070,1.18184127,3029.8,3029.7,0.463]
[1764183008267,1.34689127,3030.1,3030.0,0.2705]
[1764183008575,0.16505,3030.1,3030.0,0.73635947]
[1764183008969,1.18184127,3030.5,3030.0,0.73635947]
[1764183009272,0.16504,3030.3,3030.0,0.27335947]
[1764183010568,0.16505,3030.1,3030.0,0.00285947]
[1764183011378,0.16505,3030.1,3030.0,0.27335947]
[1764183012676,0.16505,3030.1,3030.0,0.00285947]
[1764183013475,0.16505,3030.1,3030.0,0.27335947]
[1764183014173,1.77276191,3030.7,3030.6,0.463]
[1764183014376,1.77276191,3031.3,3030.6,0.463]
[1764183014679,0.464,3030.4,3030.3,0.0049491]
[1764183016479,0.62903,3030.4,3030.3,0.0049491]
[1764183016874,0.464,3030.1,3030.0,0.00285947]
[1764183017078,0.16504,3030.3,3030.0,0.46585947]
[1764183017277,0.16504,3030.3,3030.2,0.463]
[1764183018472,0.62904,3030.3,3030.0,0.27335947]
[1764183018677,0.464,3030.1,3030.0,0.00285947]
[1764183018982,0.62905,3030.1,3030.0,0.00285947]
[1764183020771,0.16505,3030.1,3030.0,0.73635947]
[1764183021281,0.00492103,3030.6,3030.0,0.73635947]
[1764183021478,0.16994103,3030.6,3030.5,0.463]
[1764183022070,0.16503,3030.4,3030.0,0.27335947]
[1764183022375,0.00492103,3030.6,3030.0,0.27335947]
[1764183022376,0.16505,3030.2,3030.1,0.463]
[1764183023283,0.62905,3030.1,3030.0,0.00285947]
[1764183024682,0.16505,3030.1,3030.0,0.73635947]
[1764183025776,0.62905,3030.1,3030.0,0.00285947]
[1764183026677,0.62905,3030.1,3030.0,0.46585947]
[1764183026877,0.16505,3030.1,3030.0,0.73635947]
[1764183027476,0.00492103,3030.6,3030.0,0.73635947]
[1764183028975,0.16995103,3030.6,3030.0,0.73635947]
[1764183029282,0.464,3030.1,3030.0,0.00285947]
[1764183030375,0.62905,3030.1,3030.0,0.00285947]
[1764183032087,0.16508,3029.5,3028.9,1.1799014]
[1764183032286,0.16508,3029.5,3028.8,1.071]
[1764183032287,0.464,3029.1,3028.7,1.1799014]
[1764183032487,0.464,3029.1,3028.5,0.2705]
[1764183032692,0.16513,3028.8,3028.5,0.2705]
[1764183032980,0.16771186,3028.8,3028.7,0.463]
[1764183033785,0.00258186,3028.8,3028.7,0.463]
[1764183035182,0.46658186,3028.8,3028.5,0.27473546]
[1764183035587,0.00258186,3028.8,3028.7,0.473]
[1764183035884,0.4722,3027.9,3027.6,1.1799014]
[1764183036087,0.16516,3028.2,3027.5,0.2757]
[1764183036890,0.16516,3028.2,3027.5,0.2836593]
[1764183037590,0.4722,3027.6,3027.5,0.0079593]
[1764183038279,0.16517,3027.9,3027.5,0.2836593]
[1764183038591,0.16517,3027.9,3027.8,0.473]
[1764183039989,0.16517,3027.9,3027.5,0.2836593]
[1764183041193,0.16517,3027.9,3027.8,0.473]
[1764183042789,0.16514,3028.5,3028.4,0.473]
[1764183043085,0.00258186,3028.8,3028.5,0.2757]
[1764183043289,0.00258186,3028.8,3028.7,0.473]
[1764183043487,0.63990186,3028.8,3028.0,0.2757]
[1764183043883,0.00258186,3028.8,3027.5,0.2836593]
[1764183044184,0.16514,3028.4,3028.0,0.473]
[1764183044386,0.16514,3028.4,3028.0,0.7487]
[1764183044992,0.16515,3028.3,3028.0,0.7487]
[1764183045295,0.63736,3028.1,3027.5,0.2836593]
[1764183045485,0.2391,3028.5,3027.5,0.2836593]
[1764183045486,0.16517,3028.0,3027.5,0.2836593]
[1764183045690,0.16517,3028.0,3027.9,0.473]
[1764183045894,0.63737,3028.0,3027.5,0.2836593]
[1764183046398,0.16514,3028.4,3028.0,0.2757]
[1764183047094,0.16514,3028.4,3028.3,0.473]
[1764183047898,0.63734,3028.4,3028.3,0.473]
[1764183048099,0.63734,3028.4,3028.0,0.2757]
[1764183048804,0.16514,3028.4,3028.3,0.473]
[1764183053810,0.63734,3028.4,3028.3,0.473]
[1764183055615,0.16514,3028.4,3028.3,0.473]
[1764183058620,0.63734,3028.4,3028.3,0.473]
[1764183058922,0.63736,3028.2,3028.1,0.473]
[1764183059613,0.16516,3028.2,3028.1,0.473]
[1764183061220,0.16516,3028.2,3027.5,0.2836593]
[1764183061221,0.4722,3027.6,3027.5,0.7566593]
[1764183061421,0.16515,3028.3,3028.2,0.473]
[1764183062012,0.4722,3027.9,3027.8,0.473]
[1764183062323,0.16517,3027.9,3027.8,0.473]
[1764183062616,1.18577137,3028.8,3028.7,0.0828]
[1764183062812,0.2713,3029.5,3028.7,2.78244424]
[1764183063014,0.16504,3030.4,3029.2,1.18508747]
[1764183063211,0.16504,3030.3,3029.1,1.18508747]
[1764183063607,0.2713,3029.5,3029.4,0.88779741]
[1764183063913,0.2745198,3029.5,3029.4,0.88779741]
[1764183064118,1.91752891,3029.5,3029.3,0.88779741]
[1764183064309,1.17080911,3029.4,3029.2,0.88779741]
[1764183064507,0.2745198,3029.5,3029.2,0.88779741]
[1764183065621,0.13731705,3029.5,3029.2,0.88779741]
[1764183066517,0.13731705,3029.5,3029.1,0.89274651]
[1764183066720,0.0032198,3029.5,3029.4,0.88779741]
[1764183067726,1.44552891,3029.5,3029.3,0.88779741]
[1764183067908,1.17080911,3029.4,3029.2,0.88779741]
[1764183068114,1.17080911,3029.4,3029.1,0.89274651]
[1764183068315,1.17080911,3029.2,3029.1,0.0049491]
[1764183068527,1.62490911,3029.2,3029.1,0.0049491]
[1764183069912,1.17080911,3029.2,3029.1,0.0049491]
[1764183071321,1.62490911,3029.2,3029.1,0.0049491]
[1764183074921,1.17080911,3029.2,3029.1,0.0049491]
[1764183075315,0.2747198,3029.5,3029.1,2.95249334]
[1764183075515,0.2747198,3029.5,3029.2,0.88779741]
[1764183075717,1.98e-05,3029.5,3029.2,0.88779741]
[1764183075919,1.98e-05,3029.5,3029.3,1.05288741]
[1764183076127,0.0049491,3029.8,3029.5,0.16508]
[1764183076312,0.2383,3030.5,3029.7,0.8854645]
[1764183076511,0.2383,3030.5,3029.8,1.0505245]
[1764183076711,0.2383,3030.5,3030.0,0.8854645]
[1764183077012,1.17080911,3030.4,3030.0,0.00287635]
[1764183077220,0.23959327,3030.5,3030.0,0.00287635]
[1764183077420,1.17080911,3030.4,3030.0,0.00287635]
[1764183078723,1.17080911,3030.3,3030.0,0.00287635]
[1764183078926,1.17080911,3030.4,3030.0,0.00287635]
[1764183079427,0.23959327,3030.5,3030.0,0.00287635]
[1764183079626,1.41040238,3030.5,3030.0,0.00287635]
[1764183079931,1.17080911,3030.4,3030.0,0.00287635]
[1764183080328,0.23959327,3030.5,3030.0,0.00287635]
[1764183080930,1.17080911,3030.4,3030.0,0.00287635]
[1764183081437,1.17080911,3030.3,3030.0,0.00287635]
[1764183081729,1.17080911,3030.4,3030.0,0.00287635]
[1764183081930,1.41040238,3030.5,3030.0,0.00287635]
[1764183082329,0.23959327,3030.5,3030.0,0.00287635]
[1764183082726,1.17080911,3030.4,3030.0,0.00287635]
[1764183083433,0.23959327,3030.5,3030.1,3.793]
[1764183083622,0.00492103,3030.6,3030.4,2.78244424]
[1764183084027,0.1652,3031.0,3030.4,2.78244424]
[1764183084227,1.17080911,3030.9,3030.4,2.78244424]
[1764183084735,1.44550911,3030.5,3030.2,0.8854645]
[1764183085030,1.17080911,3030.3,3030.0,0.00287635]
[1764183085226,1.17080911,3030.2,3030.0,0.00287635]
[1764183085426,1.17080911,3030.3,3030.0,0.00287635]
[1764183085827,1.17080911,3030.2,3030.0,0.00287635]
[1764183086031,1.17080911,3030.3,3030.0,0.00287635]
[1764183086327,0.2747,3030.5,3030.0,0.88834085]
[1764183086534,0.1652,3031.0,3030.4,2.78244424]
[1764183087129,1.17080911,3030.9,3030.4,2.78244424]
[1764183087625,0.1652,3031.0,3030.5,1.0504945]
[1764183087831,0.1652,3031.0,3030.6,1.857]
[1764183088132,0.2747,3031.5,3030.9,2.94745424]
[1764183088323,0.16493,3032.4,3031.4,2.78244424]
[1764183088528,1.17080911,3031.8,3031.4,2.78244424]
[1764183089031,0.16493,3032.4,3031.4,2.78244424]
[1764183089032,1.44550911,3031.5,3031.4,2.78244424]
[1764183089221,1.44550911,3031.5,3031.1,0.8854645]
[1764183089418,0.2747,3031.5,3031.0,2.9004645]
[1764183090029,0.2747,3031.5,3031.0,0.8854645]
[1764183090333,1.17080911,3031.2,3031.0,0.8854645]
[1764183090531,0.2747,3031.0,3030.9,0.8904136]
[1764183090832,1.44550911,3031.0,3030.9,0.0049491]
[1764183091937,1.89960911,3031.0,3030.9,0.0049491]
[1764183092336,1.44550911,3031.0,3030.9,0.0049491]
[1764183095436,1.89960911,3031.0,3030.9,0.0049491]
[1764183095838,1.44550911,3031.0,3030.9,0.0049491]
[1764183096838,1.92520911,3031.0,3030.9,0.0049491]
[1764183097833,1.92520911,3031.0,3030.9,4.91e-05]
[1764183098538,7.92520911,3031.0,3030.9,4.91e-05]
[1764183098930,0.4797,3030.1,3030.0,20.16793635]
[1764183099340,1.65050911,3030.1,3030.0,20.16793635]
[1764183099932,1.65050911,3030.1,3030.0,20.00287635]
[1764183100435,1.17080911,3030.1,3030.0,20.00287635]
[1764183100837,1.65050911,3030.1,3030.0,20.00287635]
[1764183101434,1.17080911,3030.1,3030.0,20.00287635]
[1764183102145,1.65050911,3030.1,3030.0,20.00287635]
[1764183102731,1.17080911,3030.1,3030.0,20.00287635]
[1764183102935,0.00494909,3030.4,3030.0,22.78532059]
[1764183103141,0.67080911,3030.3,3030.2,1.17975285]
[1764183103343,0.67080911,3030.3,3030.2,5.275]
[1764183103946,0.67080911,3030.3,3030.2,7.04462927]
[1764183104444,0.67080911,3030.3,3030.2,5.275]
[1764183104941,1.15050911,3030.3,3030.2,1.77247948]
[1764183105135,1.15050911,3030.3,3030.2,5.276]
[1764183105332,1.15050911,3030.3,3030.2,7.04847948]
[1764183105534,0.67080911,3030.3,3030.2,7.04847948]
[1764183106247,1.15050911,3030.3,3030.2,1.77247948]
[1764183106642,0.4797,3030.2,3030.1,1.77247948]
[1764183106843,0.4797,3030.1,3030.0,21.18600339]
[1764183107047,1.15050911,3030.1,3030.0,20.00287635]
[1764183107452,0.67080911,3030.1,3030.0,20.00287635]
[1764183107644,0.67080911,3030.1,3030.0,21.18600339]
[1764183109147,1.15050911,3030.1,3030.0,21.18600339]
[1764183109349,1.15050911,3030.1,3030.0,26.46200339]
[1764183110338,0.67080911,3030.1,3030.0,26.46200339]
[1764183111653,1.15050911,3030.1,3030.0,26.46200339]
[1764183112447,0.67080911,3030.1,3030.0,26.46200339]
[1764183113455,1.15050911,3030.1,3030.0,26.46200339]
[1764183113755,1.15050911,3030.1,3030.0,21.18600339]
[1764183113949,1.15050911,3030.1,3030.0,25.27887635]
[1764183115352,0.67080911,3030.1,3030.0,25.27887635]
[1764183115952,1.15050911,3030.1,3030.0,25.27887635]
[1764183116556,1.15050911,3030.1,3030.0,20.00287635]
[1764183116758,1.15050911,3030.1,3030.0,25.27887635]
[1764183117859,0.67080911,3030.1,3030.0,25.27887635]
[1764183118258,1.15050911,3030.1,3030.0,25.27887635]
[1764183118761,1.15050911,3030.1,3030.0,20.00287635]
[1764183118966,1.15050911,3030.1,3030.0,26.16608141]
[1764183120258,1.15050911,3030.1,3030.0,25.27887635]
[1764183120459,1.15050911,3030.1,3030.0,20.89060686]
[1764183120660,1.15050911,3030.1,3030.0,6.24335504]
[1764183121061,1.15050911,3030.1,3030.0,4.75755504]
[1764183121361,1.15050911,3030.1,3030.0,5.05145504]
[1764183121561,1.15338246,3030.1,3030.0,5.05412377]
[1764183122662,0.67368246,3030.1,3030.0,5.50352377]
[1764183123956,0.67368246,3030.1,3030.0,5.94185428]
[1764183124152,0.67368246,3030.1,3030.0,5.05412377]
[1764183125759,0.67368246,3030.1,3030.0,5.50352377]
[1764183127268,6.67368246,3030.1,3030.0,4.76022377]
[1764183127457,0.16506,3030.0,3029.7,0.0049491]
[1764183127969,0.16506,3029.9,3029.1,0.8878342]
[1764183128166,0.16506,3029.9,3029.0,1.1817342]
[1764183128370,0.16506,3029.9,3029.0,1.1854438]
[1764183129067,0.16506,3029.9,3029.1,0.0049491]
[1764183129274,1.17891032,3030.1,3029.1,0.0049491]
[1764183129667,0.16508,3029.7,3029.5,0.3281]
[1764183135176,0.16509,3029.4,3029.1,0.0049491]
[1764183136079,0.16509,3029.4,3029.3,0.5611]
[1764183136468,0.16509,3029.4,3029.1,0.0049491]
[1764183136776,0.1651,3029.3,3029.1,0.0049491]
[1764183138778,0.1651,3029.3,3029.2,0.5611]
[1764183139280,0.1651,3029.3,3029.1,0.0049491]
[1764183140788,0.00287335,3030.1,3029.5,0.3281]
[1764183141080,0.16508,3029.6,3029.5,0.3281]
[1764183141581,0.16508,3029.6,3029.5,0.8892]
[1764183141881,0.00287335,3030.1,3030.0,0.3281]
[1764183142381,0.16792335,3030.1,3030.0,0.3281]
[1764183143382,0.16792335,3030.1,3030.0,0.8892]
[1764183144483,0.16792335,3030.1,3030.0,0.3281]
[1764183144675,0.16792335,3030.1,3030.0,0.8892]
[1764183145594,0.16792335,3030.1,3030.0,0.3281]
[1764183146287,0.16792335,3030.1,3030.0,0.8892]
[1764183147884,0.16792335,3030.1,3030.0,0.3281]
[1764183148185,0.16506,3030.0,3029.5,0.3281]
[1764183148390,0.16506,3029.9,3029.8,0.5611]
[1764183148887,0.16507,3029.8,3029.5,0.3281]
[1764183149089,0.16507,3029.8,3029.7,0.5611]
[1764183150684,0.16507,3029.8,3029.2,0.8878342]
[1764183150685,0.16508,3029.6,3029.2,0.8878342]
[1764183150889,0.1651,3029.2,3029.1,0.0049491]
[1764183151286,0.1651,3029.2,3028.5,0.2649]
[1764183151287,6.0,3029.2,3028.5,0.2649]
[1764183151486,2.4516606,3028.8,3028.0,0.3281]
[1764183151693,0.16516,3028.1,3028.0,0.3281]
[1764183152392,0.16516,3028.1,3028.0,0.3316902]
[1764183153697,0.16516,3028.1,3028.0,0.8927902]
[1764183154195,0.16516,3028.1,3028.0,0.0035902]
[1764183154590,0.16516,3028.1,3028.0,0.3316902]
[1764183156190,0.16516,3028.1,3028.0,0.8927902]
[1764183156495,0.0049491,3028.4,3028.0,0.8927902]
[1764183156886,0.0049491,3028.4,3028.3,0.5497]
[1764183157094,0.16511,3029.1,3029.0,0.8992]
[1764183157585,0.16511,3029.1,3029.0,0.3495]
[1764183157785,2.6167306,3029.7,3029.0,0.8992]
[1764183157999,2.6167306,3029.7,3029.5,0.3495]
[1764183158395,0.16508,3029.6,3029.5,0.3495]
[1764183159505,0.16509,3029.5,3029.3,0.0049491]
[1764183160208,0.16509,3029.4,3029.3,0.0049491]
[1764183160908,0.1651,3029.1,3029.0,0.23848654]
[1764183162410,0.1651,3029.1,3029.0,0.78818654]
[1764183162605,0.16507,3029.8,3029.7,0.5497]
[1764183163414,0.16508,3029.6,3029.5,0.3495]
[1764183163605,0.16508,3029.6,3029.5,0.8992]
[1764183167107,0.1651,3029.1,3029.0,0.23848654]
[1764183174119,0.16512,3028.8,3028.7,0.0049491]
[1764183174921,0.16512,3028.8,3028.7,0.5546491]
[1764183176918,0.16512,3028.8,3028.7,0.0049491]
[1764183180213,0.16512,3028.8,3028.0,0.3316902]
[1764183180214,0.16516,3028.1,3028.0,0.3316902]
[1764183181221,0.16516,3028.1,3028.0,0.8813902]
[1764183181618,0.16516,3028.1,3028.0,0.3530902]
[1764183182118,0.16516,3028.1,3028.0,0.9027902]
[1764183182915,0.16518,3027.8,3027.7,0.0049491]
[1764183183316,0.16518,3027.8,3027.7,0.5546491]
[1764183183810,0.16518,3027.8,3027.7,0.55752527]
[1764183184116,0.1689526,3027.8,3027.7,0.55752527]